bitfinex-derivatives/quotes_ETHF0:USTF0_20240829
["timestamp","ask_amount","ask_price","bid_price","bid_amount"]
[1724966859669,0.3816,2532.8,2532.7,0.39477]
[1724966860778,0.77636,2532.8,2532.7,0.39477]
[1724966861375,0.3816,2532.8,2532.7,0.39477]
[1724966867482,0.39475,2532.9,2532.7,0.39477]
[1724966867686,0.39472,2533.1,2532.9,0.39474]
[1724966867883,0.3751,2533.0,2532.9,0.39474]
[1724966868080,4.95054681,2533.0,2532.9,0.39474]
[1724966868282,8.89854681,2533.0,2532.9,0.39474]
[1724966869174,8.52344681,2533.0,2532.9,0.39474]
[1724966869380,0.3947,2533.2,2532.8,1.1158]
[1724966869780,4.54063315,2533.2,2533.0,0.39471]
[1724966870291,8.48863315,2533.2,2533.0,0.39471]
[1724966872479,0.39471,2533.1,2533.0,0.39471]
[1724966874091,4.54063315,2533.2,2532.8,1.1158]
[1724966874277,4.14593315,2533.2,2533.1,0.39471]
[1724966874684,8.09393315,2533.2,2533.1,0.39471]
[1724966875287,8.48862315,2533.2,2533.1,0.39471]
[1724966875778,4.14593315,2533.2,2533.1,0.39471]
[1724966875984,3.5917,2533.4,2533.3,0.39468]
[1724966875985,3.2078,2533.4,2533.3,0.39468]
[1724966876385,5.34e-06,2533.7,2533.6,0.39463]
[1724966881383,0.35700534,2533.7,2533.6,0.39463]
[1724966882194,0.75162534,2533.7,2533.6,0.39463]
[1724966883993,0.75162534,2533.7,2533.5,0.39464]
[1724966884396,0.75162534,2533.7,2533.6,0.39463]
[1724966886396,0.39465,2533.5,2533.4,0.39465]
[1724966886593,0.98659,2533.6,2533.2,0.76599]
[1724966886899,0.7619,2533.4,2533.2,0.76599]
[1724966887304,0.39468,2533.3,2533.2,0.3713]
[1724966887687,0.39468,2533.3,2533.2,0.76599]
[1724966890303,0.39468,2533.3,2533.2,0.3713]
[1724966890701,0.77048,2533.3,2533.2,0.3713]
[1724966891006,0.77048,2533.3,2533.2,0.76599]
[1724966891206,0.77048,2533.3,2533.2,0.3713]
[1724966891399,0.77048,2533.3,2533.1,0.3947]
[1724966891400,0.39469,2533.2,2533.1,0.3947]
[1724966892498,0.39469,2533.2,2533.0,0.77841]
[1724966892706,0.3902,2533.1,2533.0,0.77841]
[1724966893111,0.3902,2533.1,2533.0,4.72641]
[1724966893408,0.78491,2533.1,2533.0,4.72641]
[1724966893610,0.78491,2533.1,2533.0,0.39471]
[1724966894201,0.39472,2533.0,2532.9,3.03206504]
[1724966894406,0.78032,2533.0,2532.9,2.65366504]
[1724966894708,4.72832,2533.0,2532.9,2.65366504]
[1724966895712,0.39476,2532.9,2532.7,0.39476]
[1724966895913,0.75886,2532.9,2532.7,0.39476]
[1724966896113,0.3896,2532.8,2532.7,0.39476]
[1724966896415,0.78436,2532.8,2532.7,0.39476]
[1724966900226,4.3376,2532.8,2532.5,41.20071534]
[1724966900424,4.3376,2532.8,2532.5,0.00592534]
[1724966900425,0.39479,2532.6,2532.5,0.00592534]
[1724966900727,5.33056,2532.6,2532.5,0.00592534]
[1724966901026,15.58897458,2532.6,2532.5,0.00592534]
[1724966901328,16.92944458,2532.6,2532.5,0.00592534]
[1724966909539,0.39489,2532.0,2531.8,40.8]
[1724966909840,0.39489,2532.0,2531.9,0.3949]
[1724966911336,0.3904,2532.1,2531.9,0.3949]
[1724966911337,0.78528,2532.1,2531.9,0.3949]
[1724966911532,0.39488,2532.0,2531.8,0.3949]
[1724966911735,0.39488,2532.0,2531.9,0.3949]
[1724966917742,0.39488,2532.0,2531.8,0.3949]
[1724966917934,0.3949,2531.9,2531.8,0.3949]
[1724966919628,0.39491,2531.8,2531.7,0.37352534]
[1724966920436,1.3822,2531.8,2531.7,0.37352534]
[1724966920631,1.7702,2531.8,2531.7,0.37352534]
[1724966920834,1.7702,2531.8,2531.7,0.00592534]
[1724966921336,5.7198,2531.8,2531.7,0.00592534]
[1724966926143,10.06027078,2531.8,2531.7,0.00592534]
[1724966929942,10.06027078,2531.8,2531.4,0.361]
[1724966929943,0.39496,2531.5,2531.4,0.361]
[1724966930246,1.38236,2531.5,2531.4,0.361]
[1724966931453,0.39499,2531.3,2531.2,0.00592534]
[1724966931848,4.34539,2531.3,2531.2,0.00592534]
[1724966932251,4.72529,2531.3,2531.2,0.00592534]
[1724966932555,5.11539,2531.3,2531.2,0.00592534]
[1724966933443,6.10287,2531.3,2531.2,0.00592534]
[1724966934048,16.46647796,2531.3,2531.2,0.00592534]
[1724966935754,10.46647796,2531.3,2531.2,0.00592534]
[1724966935955,16.46647796,2531.3,2531.2,0.00592534]
[1724966936951,10.46647796,2531.3,2531.2,0.00592534]
[1724966937154,16.46647796,2531.3,2531.2,0.00592534]
[1724966938852,0.39504,2531.0,2530.9,0.3617]
[1724966939358,0.39507,2530.8,2530.7,0.3642]
[1724966940062,0.39508,2530.7,2530.6,0.76638]
[1724966940250,0.39508,2530.7,2530.6,0.3713]
[1724966944654,4.57513538,2530.8,2530.6,0.3713]
[1724966944655,4.57513538,2530.8,2530.7,0.39508]
[1724966944951,4.97021538,2530.8,2530.6,0.76639]
[1724966945457,4.57513538,2530.8,2530.7,0.39508]
[1724966945963,8.52633538,2530.8,2530.7,0.39508]
[1724966946151,4.57513538,2530.8,2530.7,0.39508]
[1724966946555,4.57513538,2530.8,2530.7,0.75718]
[1724966946756,0.00592534,2530.9,2530.8,0.39507]
[1724966947061,0.00592534,2530.9,2530.8,4.34627]
[1724966951365,0.00592534,2530.9,2530.8,0.39507]
[1724966951667,0.00592534,2530.9,2530.8,4.34627]
[1724966955973,0.00592534,2530.9,2530.8,5.33395]
[1724966956154,5.16135,2531.7,2531.0,0.98756]
[1724966956155,7.3818,2531.7,2531.0,0.98756]
[1724966956357,0.76205,2531.6,2531.5,0.39496]
[1724966957470,0.76205,2531.6,2531.4,0.39496]
[1724966957659,0.76205,2531.6,2531.2,0.39501]
[1724966957861,0.76205,2531.6,2531.4,0.39496]
[1724966958567,0.76205,2531.6,2531.5,0.39496]
[1724966958776,4.64115949,2531.5,2531.4,0.39497]
[1724966958980,4.99925949,2531.5,2531.4,0.39497]
[1724966959165,0.75306,2531.5,2531.4,0.39497]
[1724966959475,0.3581,2531.5,2531.4,0.39497]
[1724966965185,0.3671,2531.6,2531.5,0.39496]
[1724966965392,0.7285,2531.6,2531.5,0.39496]
[1724966967475,0.36992534,2531.8,2531.7,0.39493]
[1724966970088,0.00592534,2531.8,2531.7,0.39493]
[1724966986102,0.00592534,2531.8,2531.7,6.31919]
[1724966986803,0.3787,2532.2,2532.1,0.39486]
[1724966987010,0.3866,2532.3,2532.2,0.39485]
[1724966987307,0.3866,2532.3,2532.2,0.74725]
[1724966990306,3.2078,2532.4,2532.3,0.39483]
[1724966990603,0.00592534,2532.5,2532.4,0.39482]
[1724967000407,0.00592534,2532.5,2532.4,4.34362]
[1724967001414,0.00592534,2532.5,2532.4,4.71952]
[1724967002810,4.1946,2533.1,2532.4,4.71952]
[1724967002811,0.39469,2533.3,2532.6,0.98695]
[1724967003017,0.7226,2533.3,2533.1,0.3947]
[1724967003210,0.7226,2533.3,2533.2,0.39469]
[1724967003211,5.52905419,2533.3,2533.2,0.39469]
[1724967004113,5.88875419,2533.3,2533.1,0.3947]
[1724967006221,5.88875419,2533.3,2533.2,0.39469]
[1724967006411,5.88875419,2533.3,2533.1,0.3947]
[1724967010122,0.39469,2533.2,2533.1,0.3947]
[1724967012718,5.13186419,2533.3,2533.2,0.39469]
[1724967012914,5.49126419,2533.3,2532.8,3.9647]
[1724967013122,0.39469,2533.2,2533.1,0.3947]
[1724967014117,0.39471,2533.1,2533.0,0.39471]
[1724967014922,0.39471,2533.2,2533.1,0.39471]
[1724967021826,1.0795,2533.3,2533.1,0.39471]
[1724967022912,0.39469,2533.2,2533.1,0.39471]
[1724967025722,1.47419,2533.3,2533.2,0.39469]
[1724967025912,1.47419,2533.3,2533.1,0.3947]
[1724967026827,1.47419,2533.3,2533.2,0.39469]
[1724967027223,1.47419,2533.3,2532.9,3.2078]
[1724967027423,1.47419,2533.3,2533.2,0.39469]
[1724967029115,1.11479,2533.3,2533.2,0.39469]
[1724967030530,0.7201,2533.3,2533.2,0.39469]
[1724967031130,1.11478,2533.3,2533.2,0.39469]
[1724967031325,0.7201,2533.3,2533.2,0.39469]
[1724967031923,0.7201,2533.3,2533.1,0.3947]
[1724967032733,0.39469,2533.2,2533.1,0.3947]
[1724967048142,0.39469,2533.2,2533.1,0.81060829]
[1724967048546,0.39469,2533.2,2533.1,0.3947]
[1724967048750,0.39469,2533.2,2533.1,0.81059379]
[1724967058449,0.39469,2533.2,2533.1,0.81060189]
[1724967061253,0.39469,2533.2,2533.1,0.81062156]
[1724967064159,0.39469,2533.2,2533.1,0.81062023]
[1724967065564,1.36817,2533.4,2533.1,0.81062023]
[1724967065565,0.40057534,2533.5,2533.4,0.39466]
[1724967070456,0.00592534,2533.5,2533.4,0.39466]
[1724967070870,0.00592534,2533.5,2533.4,0.8103821]
[1724967071065,0.00592534,2533.5,2533.4,0.39466]
[1724967085968,3.2078,2534.1,2533.4,4.93386]
[1724967086165,0.75578,2534.0,2533.5,1.37202]
[1724967086385,4.87031875,2534.0,2533.9,0.39458]
[1724967087276,5.25111875,2534.0,2533.9,0.39458]
[1724967090873,4.85653875,2534.0,2533.9,0.39458]
[1724967092370,5.25110875,2534.0,2533.9,0.39458]
[1724967092573,4.85653875,2534.0,2533.9,0.39458]
[1724967104476,0.742,2534.0,2533.9,0.39458]
[1724967112378,0.00592534,2534.2,2534.1,0.39455]
[1724967112681,0.38052534,2534.2,2534.1,0.39455]
[1724967112876,0.38052534,2534.2,2534.1,4.70155]
[1724967115789,0.00592534,2534.2,2534.1,5.68794]
[1724967119791,0.00592534,2534.2,2534.1,7.10794]
[1724967120593,0.00592534,2534.2,2534.1,13.10794]
[1724967120791,0.00592534,2534.2,2534.1,7.10794]
[1724967125592,0.00592534,2534.2,2534.1,7.52365988]
[1724967126287,0.00592534,2534.2,2534.1,10.73145988]
[1724967126788,0.00592534,2534.2,2534.1,10.31574]
[1724967127004,0.00592534,2534.2,2534.1,10.73145792]
[1724967127690,0.00592534,2534.2,2534.1,16.73145792]
[1724967128601,0.00592534,2534.2,2534.1,13.52365792]
[1724967128893,0.00592534,2534.2,2534.1,16.73145792]
[1724967129699,0.00592534,2534.2,2534.1,13.52365792]
[1724967130092,0.00592534,2534.2,2534.1,16.73145792]
[1724967130400,0.00592534,2534.2,2534.1,16.73145786]
[1724967130606,0.00592534,2534.2,2534.1,13.52365786]
[1724967130901,0.00592534,2534.2,2534.1,10.73145786]
[1724967131801,0.00592534,2534.2,2534.1,7.52365786]
[1724967131989,0.00592534,2534.2,2534.1,10.73145786]
[1724967132303,0.00592534,2534.2,2534.1,7.96446786]
[1724967132496,0.00592534,2534.2,2534.1,4.01806786]
[1724967132991,0.00592534,2534.2,2534.1,4.01808349]
[1724967133702,0.00592534,2534.2,2534.1,3.60235]
[1724967133993,0.00592534,2534.2,2534.1,4.01808288]
[1724967135598,0.00592534,2534.2,2534.1,3.60235]
[1724967138099,1.14906534,2534.2,2534.1,3.2078]
[1724967138295,1.53216534,2534.2,2534.1,3.2078]
[1724967138496,1.53216534,2534.2,2534.0,0.39456]
[1724967138803,1.53216534,2534.2,2533.8,4.6278]
[1724967138804,0.39455,2534.1,2533.8,4.6278]
[1724967138999,1.53217534,2534.2,2534.0,0.39456]
[1724967139205,1.53217534,2534.2,2533.8,0.3946]
[1724967139206,0.39458,2534.0,2533.8,0.3946]
[1724967139404,0.3946,2533.8,2533.7,0.00592534]
[1724967139802,0.39467,2533.4,2533.2,3.04835504]
[1724967140096,0.3857,2533.3,2533.1,42.6147]
[1724967140298,0.78038,2533.3,2533.1,41.1947]
[1724967140503,0.3726,2533.2,2532.8,2.65366504]
[1724967140801,0.39472,2533.0,2532.9,0.41591509]
[1724967141099,0.39472,2533.0,2532.9,41.21591509]
[1724967141405,0.39472,2533.0,2532.9,40.8]
[1724967142105,1.81472,2533.1,2532.9,41.19474]
[1724967142305,1.81472,2533.1,2532.9,40.8]
[1724967142504,0.39472,2533.0,2532.9,40.8]
[1724967142805,1.81472,2533.1,2532.9,40.8]
[1724967143102,0.3639,2533.0,2532.9,40.8]
[1724967143307,0.75862,2533.0,2532.9,40.8]
[1724967143494,0.3639,2533.0,2532.9,40.8]
[1724967143698,0.3639,2533.0,2532.9,41.19474]
[1724967143894,0.3639,2533.0,2532.9,40.8]
[1724967144107,0.75862,2533.0,2532.9,40.8]
[1724967145403,0.3639,2533.0,2532.9,40.8]
[1724967146003,0.3639,2533.0,2532.9,41.19474]
[1724967146308,0.75862,2533.0,2532.9,41.19474]
[1724967146603,0.3639,2533.0,2532.9,41.19474]
[1724967147807,0.75862,2533.0,2532.9,40.8]
[1724967154106,0.75862,2533.0,2532.9,41.19474]
[1724967154309,0.75862,2533.0,2532.9,40.8]
[1724967157712,0.75862,2533.0,2532.9,41.19474]
[1724967163118,0.75862,2533.0,2532.9,0.39474]
[1724967163711,0.75862,2533.0,2532.8,41.19475]
[1724967163909,0.76104,2532.9,2532.8,41.19475]
[1724967164322,0.3663,2532.9,2532.8,41.19475]
[1724967169631,0.3663,2532.9,2532.8,41.54885]
[1724967169828,0.3663,2532.9,2532.8,41.92195]
[1724967170526,0.3663,2532.9,2532.8,45.12975]
[1724967173431,0.3663,2532.9,2532.8,41.92195]
[1724967174726,0.75863,2533.0,2532.9,0.39474]
[1724967179048,4.70663,2533.0,2532.9,41.19474]
[1724967179246,3.948,2533.0,2532.9,41.19474]
[1724967179746,2.20011,2533.1,2533.0,0.39472]
[1724967180146,6.14811,2533.1,2533.0,0.39472]
[1724967186545,6.14811,2533.1,2532.9,41.19473]
[1724967186546,0.39472,2533.0,2532.9,41.19473]
[1724967190549,0.39472,2533.0,2532.9,41.6106667]
[1724967190864,0.39472,2533.0,2532.9,42.64527591]
[1724967191456,0.39472,2533.0,2532.9,41.6106667]
[1724967192257,1.38154,2533.0,2532.9,1.45054591]
[1724967192455,6.31636,2533.0,2532.9,0.4159367]
[1724967192661,1.38166,2532.8,2532.7,0.00592534]
[1724967192958,8.27163085,2532.8,2532.7,0.00592534]
[1724967193149,18.21963085,2532.8,2532.7,0.00592534]
[1724967193348,19.34893085,2532.8,2532.7,0.00592534]
[1724967194250,0.39485,2532.2,2532.1,1.42946921]
[1724967194450,0.39485,2532.2,2532.1,0.81090346]
[1724967195359,0.39485,2532.2,2532.1,0.39486]
[1724967195949,1.81484,2532.3,2532.2,0.39485]
[1724967197552,2.18974,2532.3,2532.2,0.39485]
[1724967198655,1.7949,2532.3,2532.1,0.39486]
[1724967198850,2.18974,2532.3,2532.2,0.39485]
[1724967200070,1.7949,2532.3,2532.2,0.39485]
[1724967200258,1.7949,2532.3,2532.0,0.58288008]
[1724967200259,1.81592534,2532.4,2532.3,0.39483]
[1724967202964,1.81592534,2532.4,2532.3,1.16313]
[1724967203166,0.00592534,2532.4,2532.3,1.16313]
[1724967218878,0.00592534,2532.4,2532.2,3.2078]
[1724967219082,0.99299534,2532.4,2531.9,0.74032534]
[1724967219283,0.99299534,2532.4,2532.0,0.39488]
[1724967219284,0.39488,2532.1,2532.0,0.39488]
[1724967219589,0.39488,2532.0,2531.9,1.13520534]
[1724967219881,0.76058,2532.0,2531.9,1.13520534]
[1724967220085,0.76058,2532.0,2531.9,0.00592534]
[1724967222074,4.71018,2532.0,2531.9,0.00592534]
[1724967222274,5.69739,2532.0,2531.9,0.00592534]
[1724967222477,8.90519,2532.0,2531.9,0.00592534]
[1724967223575,5.69739,2532.0,2531.9,0.00592534]
[1724967227985,11.69739,2532.0,2531.9,0.00592534]
[1724967228286,0.39497,2531.5,2531.4,0.39497]
[1724967228590,1.81497,2531.5,2531.4,0.39497]
[1724967229490,0.39499,2531.3,2531.2,0.00592534]
[1724967229687,1.81499,2531.3,2531.2,0.00592534]
[1724967229882,2.16959,2531.3,2531.2,0.00592534]
[1724967230886,3.15707,2531.3,2531.2,0.00592534]
[1724967231088,7.10747,2531.3,2531.2,0.00592534]
[1724967231286,11.25513806,2531.3,2531.2,0.00592534]
[1724967238887,0.39505,2530.9,2530.8,0.359]
[1724967239093,1.81505,2530.9,2530.8,0.359]
[1724967239285,1.81505,2530.9,2530.8,41.159]
[1724967239489,1.81505,2530.9,2530.8,0.359]
[1724967239795,2.19915,2530.9,2530.8,0.359]
[1724967240492,2.19915,2530.9,2530.8,0.75407]
[1724967241092,2.19915,2530.9,2530.7,41.19507]
[1724967241281,2.19916,2530.9,2530.7,41.56467]
[1724967241489,0.39508,2530.7,2530.6,0.00592534]
[1724967241693,1.81508,2530.7,2530.6,0.00592534]
[1724967242695,5.76628,2530.7,2530.6,0.00592534]
[1724967242886,9.96288277,2530.7,2530.6,0.00592534]
[1724967245892,14.15840277,2530.7,2530.6,0.00592534]
[1724967247994,0.39514,2530.4,2530.1,0.39517]
[1724967248193,1.8109,2530.3,2530.2,0.39516]
[1724967248788,1.8109,2530.3,2529.9,1.1217]
[1724967248789,0.39518,2530.1,2529.9,1.1217]
[1724967248987,1.81518,2530.1,2529.9,1.1217]
[1724967249394,1.81518,2530.1,2529.9,0.7265]
[1724967249588,1.42,2530.1,2529.9,0.7265]
[1724967249794,1.42,2530.1,2530.0,0.39519]
[1724967252797,1.81518,2530.1,2529.9,1.1217]
[1724967253704,1.42,2530.1,2530.0,0.39519]
[1724967254202,1.42,2530.1,2529.9,0.7265]
[1724967254203,2.18978,2530.1,2529.9,0.3952]
[1724967254501,0.78605,2530.3,2530.1,0.39517]
[1724967254700,0.3909,2530.3,2530.2,0.386]
[1724967254899,0.3746,2530.5,2530.4,0.39513]
[1724967255305,8.56346452,2530.5,2530.4,0.39513]
[1724967255706,4.23686452,2530.5,2530.4,0.39513]
[1724967255909,5.65686452,2530.5,2530.4,0.39513]
[1724967256097,1.42,2530.5,2530.4,0.39513]
[1724967257307,4.5486,2530.8,2530.6,0.39509]
[1724967257508,1.42,2530.7,2530.6,0.39509]
[1724967257799,5.71268113,2530.7,2530.6,0.39509]
[1724967258605,1.42,2530.7,2530.6,4.3463]
[1724967259105,1.81508,2530.7,2530.6,3.9512]
[1724967259707,2.18448,2530.7,2530.6,3.9512]
[1724967260104,1.7894,2530.7,2530.4,0.3806]
[1724967260302,2.18449,2530.7,2530.4,0.77573]
[1724967260703,1.7894,2530.7,2530.4,0.77573]
[1724967261602,1.7894,2530.7,2530.4,0.3806]
[1724967261807,0.3694,2530.7,2530.6,0.3951]
[1724967262809,1.8077,2530.8,2530.7,0.39508]
[1724967263309,1.7964,2531.0,2530.9,0.39505]
[1724967263502,1.42,2531.0,2530.9,0.39505]
[1724967264302,1.42,2531.0,2530.5,3.2078]
[1724967264511,1.42,2531.0,2530.7,0.39508]
[1724967264512,1.42,2530.8,2530.7,0.39508]
[1724967264702,1.42,2530.8,2530.6,0.38]
[1724967264897,1.42,2530.8,2530.7,0.39508]
[1724967265406,1.42,2530.8,2530.7,4.34628]
[1724967266209,1.42,2531.0,2530.9,0.39505]
[1724967266412,0.00592534,2531.1,2531.0,0.39504]
[1724967266715,1.42592534,2531.1,2531.0,0.39504]
[1724967268509,0.00592534,2531.1,2531.0,0.39504]
[1724967269103,1.42592534,2531.1,2531.0,0.39504]
[1724967270012,1.42592534,2531.1,2531.0,0.78474]
[1724967272226,1.77912534,2531.1,2531.0,0.39504]
[1724967273126,1.42592534,2531.1,2531.0,0.39504]
[1724967276727,1.42592534,2531.1,2531.0,1.38264]
[1724967279930,0.00592534,2531.1,2531.0,5.33384]
[1724967281231,0.00592534,2531.1,2531.0,6.32144]
[1724967281435,0.00592534,2531.1,2531.0,12.32144]
[1724967282032,1.42,2531.7,2531.4,0.39497]
[1724967282238,1.42,2531.7,2531.5,0.3886]
[1724967282429,1.42,2531.7,2531.6,0.39494]
[1724967288930,1.1453,2531.8,2531.7,0.39493]
[1724967292239,0.7561,2531.8,2531.7,0.39493]
[1724967303355,0.00592534,2531.9,2531.8,1.3822]
[1724967303546,0.00592534,2531.9,2531.8,4.59]
[1724967303747,0.00592534,2531.9,2531.8,8.5396]
[1724967303960,0.00592534,2531.9,2531.8,49.3396]
[1724967305043,0.00592534,2531.9,2531.8,50.32689]
[1724967305360,0.7295,2532.2,2532.1,1.38203]
[1724967305557,1.793,2532.5,2532.4,0.39482]
[1724967305851,0.7376,2532.6,2532.5,0.3948]
[1724967308547,0.00592534,2532.8,2532.3,0.3583]
[1724967308853,0.00592534,2532.8,2532.7,0.39477]
[1724967309058,0.00592534,2532.8,2532.7,0.75047]
[1724967309351,0.00592534,2532.8,2532.7,1.13717]
[1724967312261,0.00592534,2532.8,2532.7,5.08517]
[1724967312650,0.00592534,2532.8,2532.7,8.29297]
[1724967315163,0.00592534,2532.8,2532.7,5.08517]
[1724967325162,0.00592534,2532.8,2532.7,8.29297]
[1724967325663,3.48187402,2534.0,2533.5,0.39465]
[1724967325864,0.7346,2533.8,2533.7,0.39462]
[1724967328663,0.00592534,2534.0,2533.9,0.39458]
[1724967334964,0.00592534,2534.0,2533.9,5.76098]
[1724967335158,0.00592534,2534.0,2533.9,2.18708]
[1724967335763,0.00592534,2534.0,2533.9,6.13348]
[1724967336966,0.00592534,2534.0,2533.8,3.2078]
[1724967337455,0.40049534,2534.0,2533.8,3.2078]
[1724967337659,0.00592534,2534.0,2533.8,3.2078]
[1724967337858,0.40049534,2534.0,2533.8,3.2078]
[1724967338267,0.39458,2533.9,2533.8,3.2078]
[1724967338476,0.39461,2533.8,2533.5,0.40056534]
[1724967338670,1.14412,2533.7,2533.5,0.40057534]
[1724967338963,1.14412,2533.7,2533.5,0.00592534]
[1724967339466,0.39463,2533.6,2533.5,0.00592534]
[1724967339665,4.82688345,2533.6,2533.5,0.00592534]
[1724967339962,12.77604345,2533.6,2533.1,3.2078]
[1724967340162,0.39469,2533.2,2533.1,3.2078]
[1724967341662,0.39472,2533.0,2532.9,0.00592534]
[1724967341863,3.41,2533.4,2532.9,0.00592534]
[1724967342162,0.39472,2533.0,2532.9,0.00592534]
[1724967342562,4.34272,2533.0,2532.9,0.00592534]
[1724967343171,4.72442,2533.0,2532.9,0.00592534]
[1724967346176,5.71124,2533.0,2532.9,0.00592534]
[1724967351476,15.84621962,2533.0,2532.9,0.00592534]
[1724967351677,0.39481,2532.5,2532.1,3.5815]
[1724967351970,0.98692,2532.8,2532.3,0.39483]
[1724967351971,0.7445,2532.4,2532.3,0.39483]
[1724967352272,0.7445,2532.4,2532.1,3.5815]
[1724967352273,1.13932,2532.4,2532.2,0.39484]
[1724967354274,0.7445,2532.4,2532.3,0.39483]
[1724967354470,0.7445,2532.4,2532.2,0.39484]
[1724967355476,1.13932,2532.4,2532.2,0.39484]
[1724967357982,0.7445,2532.4,2532.0,40.80592534]
[1724967358185,4.39938022,2532.3,2532.0,0.00592534]
[1724967358385,0.39486,2532.1,2532.0,3.21372534]
[1724967358883,4.27630064,2532.1,2532.0,0.00592534]
[1724967359181,4.67116064,2532.1,2532.0,0.00592534]
[1724967359880,8.62076064,2532.1,2532.0,0.00592534]
[1724967360482,9.60793064,2532.1,2532.0,0.00592534]
[1724967360777,9.98033064,2532.1,2532.0,0.00592534]
[1724967361376,0.39493,2531.7,2531.6,40.8]
[1724967362078,0.3916,2531.9,2531.8,0.39491]
[1724967362383,0.3554,2532.0,2531.9,0.3949]
[1724967362687,0.75028,2532.0,2531.9,0.3949]
[1724967362878,0.75028,2532.0,2531.7,3.2078]
[1724967362879,0.75028,2532.0,2531.8,0.3949]
[1724967363475,0.75028,2532.0,2531.9,0.3949]
[1724967363680,0.3554,2532.0,2531.9,0.3949]
[1724967364788,0.75028,2532.0,2531.9,0.3949]
[1724967365180,0.3554,2532.0,2531.9,0.3949]
[1724967366190,0.75028,2532.0,2531.9,0.3949]
[1724967366889,0.3554,2532.0,2531.9,0.3949]
[1724967367792,3.5955,2532.5,2531.8,1.42]
[1724967367992,1.15762,2532.4,2531.9,1.1374]
[1724967368189,5.42662369,2532.4,2531.9,1.1374]
[1724967368395,5.03180369,2532.4,2532.3,0.39483]
[1724967368598,5.42662369,2532.4,2532.2,0.39484]
[1724967368792,3.2078,2532.5,2532.2,0.39484]
[1724967368793,4.17992534,2532.6,2532.5,0.3948]
[1724967369094,0.00592534,2532.6,2532.5,0.3948]
[1724967376291,0.00592534,2532.6,2532.5,1.38181]
[1724967376601,0.00592534,2532.6,2532.5,5.33061]
[1724967381402,0.00592534,2532.6,2532.5,6.31762]
[1724967385407,0.3742,2533.0,2532.9,0.39474]
[1724967387612,0.3722,2533.1,2533.0,0.39472]
[1724967387810,0.3722,2533.1,2533.0,4.58934]
[1724967388013,0.00592534,2533.2,2533.1,1.38149]
[1724967388212,0.00592534,2533.2,2533.1,5.32949]
[1724967390004,0.00592534,2533.2,2533.1,6.31627]
[1724967391510,0.00592534,2533.2,2533.1,9.72627]
[1724967391711,0.3679,2533.6,2533.5,0.39465]
[1724967392104,0.3679,2533.6,2533.4,3.2078]
[1724967392105,0.3679,2533.6,2533.4,3.60245]
[1724967392309,0.3594,2533.5,2533.4,3.60245]
[1724967393724,0.3679,2533.6,2533.5,0.39465]
[1724967399531,0.3679,2533.6,2533.5,3.60245]
[1724967402436,0.39452534,2533.7,2533.6,0.39463]
[1724967402733,0.75072534,2533.7,2533.6,0.39463]
[1724967408837,0.75072534,2533.7,2533.6,3.60243]
[1724967409935,0.39466,2533.4,2533.3,3.2078]
[1724967410337,9.30106691,2533.4,2532.9,0.00592534]
[1724967410641,0.39471,2533.1,2532.9,0.00592534]
[1724967410836,0.39471,2533.1,2532.9,0.40065534]
[1724967410837,0.3759,2533.0,2532.9,0.40065534]
[1724967412131,0.3759,2533.0,2532.9,0.00592534]
[1724967412335,0.3759,2533.0,2532.9,0.40066534]
[1724967426646,0.77062,2533.0,2532.9,0.00592534]
[1724967433148,11.66023324,2533.0,2532.9,0.00592534]
[1724967433353,18.64705324,2533.0,2532.9,0.00592534]
[1724967436051,16.24023324,2533.0,2532.9,0.00592534]
[1724967436244,17.66023324,2533.0,2532.9,0.00592534]
[1724967436444,9.25341324,2533.0,2532.9,0.00592534]
[1724967436648,10.67341324,2533.0,2532.9,0.00592534]
[1724967437454,16.67341324,2533.0,2532.9,0.00592534]
[1724967437752,10.67341324,2533.0,2532.9,0.00592534]
[1724967440561,10.27869324,2533.0,2532.9,0.00592534]
[1724967441153,10.67341324,2533.0,2532.9,0.00592534]
[1724967445666,10.67341324,2533.0,2532.9,0.40066534]
[1724967446254,10.67341324,2533.0,2532.9,0.00592534]
[1724967446455,10.67341324,2533.0,2532.9,0.40066534]
[1724967449762,10.27869324,2533.0,2532.9,0.40066534]
[1724967449959,5.0225,2533.2,2533.1,0.39471]
[1724967450160,1.8147,2533.2,2533.1,0.39471]
[1724967450356,9.95081833,2533.2,2533.1,0.39471]
[1724967451061,9.95081833,2533.2,2532.9,0.00592534]
[1724967451262,0.39472,2533.0,2532.9,0.40065534]
[1724967451656,4.34272,2533.0,2532.9,0.40065534]
[1724967452560,4.34272,2533.0,2532.9,0.00592534]
[1724967452865,4.34272,2533.0,2532.9,0.40066534]
[1724967453059,4.34272,2533.0,2532.9,0.00592534]
[1724967453272,4.34272,2533.0,2532.9,0.40066534]
[1724967454370,4.34272,2533.0,2532.9,1.01659082]
[1724967455475,4.34272,2533.0,2532.9,0.62185082]
[1724967455973,4.34272,2533.0,2532.9,1.01659082]
[1724967456263,0.39472,2533.0,2532.9,0.62185082]
[1724967458871,0.39472,2533.0,2532.9,1.01659082]
[1724967459072,0.39472,2533.0,2532.9,0.62185082]
[1724967460268,4.34272,2533.0,2532.9,0.62185082]
[1724967460475,8.48924824,2533.0,2532.9,0.62185082]
[1724967461864,19.67068824,2533.0,2532.9,0.62185082]
[1724967462271,19.67068824,2533.0,2532.9,0.00592534]
[1724967464372,16.46288824,2533.0,2532.9,0.00592534]
[1724967466075,10.46288824,2533.0,2532.9,0.00592534]
[1724967471275,13.67068824,2533.0,2532.9,0.00592534]
[1724967471780,1.38192,2532.3,2532.2,1.03460921]
[1724967471976,6.00972,2532.3,2532.2,0.61600741]
[1724967472181,14.31759423,2532.3,2532.2,0.61600741]
[1724967472376,0.39486,2532.1,2532.0,0.361]
[1724967472571,0.39486,2532.1,2532.0,0.97706416]
[1724967473072,0.39486,2532.1,2532.0,0.97705965]
[1724967474475,4.6419319,2532.1,2532.0,0.97705965]